bitfinex/quotes_BTCUSD_20250620
["timestamp","ask_amount","ask_price","bid_price","bid_amount"]
[1750455275427,4.72421,103640.0,103630.0,0.28374232]
[1750455275563,4.73385831,103640.0,103630.0,0.28493232]
[1750455276234,4.73585831,103640.0,103630.0,0.28493232]
[1750455276910,4.72621009,103640.0,103630.0,0.28374232]
[1750455277118,4.72621009,103640.0,103630.0,0.28493232]
[1750455278269,4.72521009,103640.0,103630.0,0.28493232]
[1750455279031,4.72321009,103640.0,103630.0,0.28493232]
[1750455279536,4.7425069,103640.0,103630.0,0.28493232]
[1750455279768,4.75215549,103640.0,103630.0,0.28493232]
[1750455279985,4.7425069,103640.0,103630.0,0.28493232]
[1750455280420,4.7328584,103640.0,103630.0,0.28493232]
[1750455280659,4.74250681,103640.0,103630.0,0.28493232]
[1750455281572,4.7521554,103640.0,103630.0,0.28493232]
[1750455283461,4.75215606,103640.0,103630.0,0.28493232]
[1750455283945,4.73285878,103640.0,103630.0,0.28493232]
[1750455284168,4.74250737,103640.0,103630.0,0.28493232]
[1750455287089,3.81014094,103640.0,103630.0,0.28493232]
[1750455287319,4.73285878,103640.0,103630.0,0.28493232]
[1750455287601,4.74250737,103640.0,103630.0,0.28493232]
[1750455287814,4.74250728,103640.0,103630.0,0.28493232]
[1750455288683,4.72321018,103640.0,103630.0,0.28493232]
[1750455289107,4.71356187,103640.0,103630.0,0.28493232]
[1750455289523,4.72321009,103640.0,103630.0,0.28493232]
[1750455289676,4.71356187,103640.0,103630.0,0.28493232]
[1750455289889,4.72321009,103640.0,103630.0,0.28493232]
[1750455290090,4.72321,103640.0,103630.0,0.28493232]
[1750455290522,4.71356187,103640.0,103630.0,0.28493232]
[1750455291482,4.76356187,103640.0,103630.0,0.28493232]
[1750455292262,0.98236587,103640.0,103630.0,0.28493232]
[1750455294849,0.97271784,103640.0,103630.0,0.28493232]
[1750455296186,0.51135892,103640.0,103630.0,0.28493232]
[1750455296415,0.46135892,103640.0,103630.0,0.28493232]
[1750455297347,3.85178796,103650.0,103640.0,0.28352091]
[1750455297553,4.31314688,103650.0,103640.0,0.44359091]
[1750455298179,4.3034994,103650.0,103640.0,0.44359091]
[1750455298999,4.3044994,103650.0,103640.0,0.44359091]
[1750455299203,4.31414688,103650.0,103640.0,0.44359091]
[1750455299618,4.31614688,103650.0,103640.0,0.44359091]
[1750455300042,4.3064994,103650.0,103640.0,0.44359091]
[1750455300260,4.30649931,103650.0,103640.0,0.44359091]
[1750455300483,3.84514039,103650.0,103640.0,0.44359091]
[1750455300726,4.31614679,103650.0,103640.0,0.44359091]
[1750455300953,4.36614679,103650.0,103640.0,0.44359091]
[1750455301175,4.35649931,103650.0,103640.0,0.44359091]
[1750455302025,4.36614679,103650.0,103640.0,0.44359091]
[1750455302709,4.35649931,103650.0,103640.0,0.44359091]
[1750455302925,4.36614669,103650.0,103640.0,0.44359091]
[1750455304662,3.875846,103650.0,103640.0,0.44361091]
[1750455304851,4.34685193,103650.0,103640.0,0.44361091]
[1750455305103,4.33720492,103650.0,103640.0,0.44361091]
[1750455305546,4.33420492,103650.0,103640.0,0.44361091]
[1750455306423,3.872846,103650.0,103640.0,0.44361091]
[1750455306673,4.33420492,103650.0,103640.0,0.44361091]
[1750455313158,4.15761663,103650.0,103640.0,0.44361091]
[1750455313291,4.15761692,103650.0,103640.0,0.44361091]
[1750455313834,0.51135892,103650.0,103640.0,0.44361091]
[1750455316150,0.51135892,103650.0,103640.0,0.53888984]
[1750455317476,0.46135892,103650.0,103640.0,0.53888984]
[1750455319358,4.117313,103660.0,103650.0,0.2861995]
[1750455319589,0.92276784,103660.0,103650.0,0.2874095]
[1750455320545,0.92285869,103660.0,103650.0,0.2874095]
[1750455320963,0.92485869,103660.0,103650.0,0.2874095]
[1750455321707,0.92585869,103660.0,103650.0,0.2874095]
[1750455321944,0.93550477,103660.0,103650.0,0.2874095]
[1750455323416,0.92585869,103660.0,103650.0,0.2874095]
[1750455328873,0.70934996,103660.0,103650.0,0.2874095]
[1750455329087,0.46444977,103660.0,103650.0,0.2874095]
[1750455329525,0.46444977,103660.0,103650.0,0.4462095]
[1750455332186,0.46444977,103660.0,103650.0,0.54148843]
[1750455333716,0.46144977,103660.0,103650.0,0.54148843]
[1750455343905,0.46144977,103660.0,103650.0,0.38268843]
[1750455344135,0.46144977,103660.0,103650.0,0.54144843]
[1750455349444,3.70363027,103670.0,103660.0,0.28627809]
[1750455349687,4.16498919,103670.0,103660.0,0.28627809]
[1750455350848,3.70363027,103670.0,103660.0,0.28627809]
[1750455351055,4.16498919,103670.0,103660.0,0.28627809]
[1750455352598,4.15534367,103670.0,103660.0,0.28627809]
[1750455352813,3.69398475,103670.0,103660.0,0.28627809]
[1750455353026,4.14569852,103670.0,103660.0,0.28627809]
[1750455353236,3.6843396,103670.0,103660.0,0.28627809]
[1750455353694,4.14569852,103670.0,103660.0,0.28627809]
[1750455354326,4.1456103,103670.0,103660.0,0.28627809]
[1750455354533,4.13596496,103670.0,103660.0,0.28627809]
[1750455354753,4.13596496,103670.0,103660.0,0.28746809]
[1750455358576,3.67460604,103670.0,103660.0,0.28746809]
[1750455358999,4.13596496,103670.0,103660.0,0.28746809]
[1750455365479,4.13596496,103670.0,103660.0,0.25397809]
[1750455365683,4.13596496,103670.0,103660.0,0.44425809]
[1750455367964,4.13596496,103670.0,103660.0,0.44549809]
[1750455370579,0.48970696,103670.0,103660.0,0.44549809]
[1750455376651,0.48970696,103670.0,103660.0,0.44425809]
[1750455376858,0.48970696,103670.0,103660.0,0.44549809]
[1750455378059,0.30799823,103670.0,103660.0,0.44549809]
[1750455379198,0.32578532,103670.0,103660.0,0.44549809]
[1750455382367,0.47914601,103670.0,103660.0,0.44549809]
[1750455386089,0.47914601,103670.0,103660.0,0.28681809]
[1750455386317,0.47914601,103670.0,103660.0,0.44541809]
[1750455386759,0.47914601,103670.0,103660.0,0.28681809]
[1750455386907,0.47914601,103670.0,103660.0,0.44541809]
[1750455411079,0.01778709,103670.0,103660.0,0.44541809]
[1750455411310,0.47914601,103670.0,103660.0,0.44541809]
[1750455411528,0.46135892,103670.0,103660.0,0.44541809]
[1750455414238,0.4927666,103670.0,103660.0,0.44541809]
[1750455416778,0.03140768,103670.0,103660.0,0.44541809]
[1750455417073,0.4927666,103670.0,103660.0,0.44541809]
[1750455417252,0.46135892,103670.0,103660.0,0.44541809]
[1750455418418,0.23258862,103670.0,103660.0,0.44541809]
[1750455418835,0.54150784,103680.0,103670.0,0.21221116]
[1750455419015,4.64850999,103680.0,103670.0,0.21221116]
[1750455419176,4.68028277,103680.0,103670.0,0.21221116]
[1750455419792,4.68028277,103680.0,103670.0,0.24481116]
[1750455420148,4.68128277,103680.0,103670.0,0.24481125]
[1750455420354,4.68328277,103680.0,103670.0,0.24481125]
[1750455420679,4.69292783,103680.0,103670.0,0.24481125]
[1750455420888,4.69292773,103680.0,103670.0,0.24481125]
[1750455421316,4.88582896,103680.0,103670.0,0.24481135]
[1750455421484,4.87618455,103680.0,103670.0,0.19291984]
[1750455421687,4.87618455,103680.0,103670.0,0.21221135]
[1750455422068,4.68328332,103680.0,103670.0,0.22185696]
[1750455422259,4.87618455,103680.0,103670.0,0.21221135]
[1750455422486,3.83917784,103670.0,103660.0,0.19293845]
[1750455422645,0.2218995,103650.0,103640.0,0.22557568]
[1750455422852,4.86448534,103650.0,103640.0,0.212364]
[1750455423071,4.86448534,103650.0,103640.0,0.20271531]
[1750455423240,4.88733814,103650.0,103640.0,0.19306653]
[1750455423474,4.65285908,103650.0,103640.0,0.19306653]
[1750455423667,4.8458169,103650.0,103640.0,0.19306653]
[1750455424680,4.94108675,103650.0,103640.0,9.085e-05]
[1750455424894,4.94508675,103650.0,103640.0,9.085e-05]
[1750455425066,4.94108675,103650.0,103640.0,9.085e-05]
[1750455425518,4.94308675,103650.0,103640.0,9.085e-05]
[1750455428539,4.94308675,103650.0,103640.0,0.19306653]
[1750455430663,4.91058675,103650.0,103640.0,0.19306653]
[1750455430873,4.87838675,103650.0,103640.0,0.20271531]
[1750455431085,5.08686675,103650.0,103640.0,0.212364]
[1750455431312,5.08686675,103650.0,103640.0,0.20271531]
[1750455431924,5.08686675,103650.0,103640.0,0.19306653]
[1750455432195,5.08686675,103650.0,103640.0,0.20271531]
[1750455432403,4.9915469,103650.0,103640.0,0.23471531]
[1750455432888,4.9915469,103650.0,103640.0,0.212364]
[1750455433083,4.8330669,103650.0,103640.0,0.19306653]
[1750455433300,4.8330669,103650.0,103640.0,0.20271531]
[1750455433951,4.8330669,103650.0,103640.0,0.212364]
[1750455434170,4.8330669,103650.0,103640.0,0.20271531]
[1750455434369,4.92643376,103650.0,103640.0,0.20271531]
[1750455435188,4.92643376,103650.0,103640.0,0.212364]
[1750455435390,4.92643376,103650.0,103640.0,0.22201259]
[1750455435600,4.92643376,103650.0,103640.0,0.212364]
[1750455436679,4.8330669,103650.0,103640.0,0.22201259]
[1750455438303,4.6497575,103650.0,103640.0,0.22201259]
[1750455438520,4.66905273,103650.0,103640.0,0.26266109]
[1750455438729,4.65940488,103650.0,103640.0,0.25301259]
[1750455439014,4.86200979,103650.0,103640.0,0.25301259]
[1750455439174,4.86200979,103650.0,103640.0,0.243364]
[1750455439866,4.86200979,103650.0,103640.0,0.25301259]
[1750455441751,4.86200979,103650.0,103640.0,0.243364]
[1750455441926,4.95727964,103650.0,103640.0,0.243364]
[1750455442352,4.86200979,103650.0,103640.0,0.25301259]
[1750455442617,3.93929195,103650.0,103640.0,0.262661]
[1750455442792,4.86200979,103650.0,103640.0,0.27230931]
[1750455443038,3.93929195,103650.0,103640.0,0.27230931]
[1750455443250,4.66905273,103650.0,103640.0,0.27230931]
[1750455443426,3.76567304,103650.0,103640.0,0.27230875]
[1750455443626,4.68839088,103650.0,103640.0,0.27230819]
[1750455443850,4.69803798,103650.0,103640.0,0.30440819]
[1750455444145,4.70768583,103650.0,103640.0,0.28511184]
[1750455444349,4.89099504,103650.0,103640.0,0.27546353]
[1750455444575,4.70768583,103650.0,103640.0,0.28511184]
[1750455445301,3.78496799,103650.0,103640.0,0.28511184]
[1750455445499,4.24632682,103650.0,103640.0,0.28511184]
[1750455445711,4.70768574,103650.0,103640.0,0.28511184]
[1750455446557,4.70768565,103650.0,103640.0,0.28511184]
[1750455446731,4.70768565,103650.0,103640.0,0.27546353]
[1750455446937,4.90064271,103650.0,103640.0,0.26581512]
[1750455447136,4.90064271,103650.0,103640.0,0.28511184]
[1750455447381,4.70768565,103650.0,103640.0,0.28511184]
[1750455447776,4.7173335,103650.0,103640.0,0.28511184]
[1750455448489,4.7173335,103650.0,103640.0,0.27546353]
[1750455451141,4.7173335,103650.0,103640.0,0.28511184]
[1750455451349,4.67869965,103650.0,103640.0,0.28511184]
[1750455451750,4.24570517,103650.0,103640.0,0.29476006]
[1750455451930,4.21671917,103650.0,103640.0,0.29476006]
[1750455452135,4.20769306,103650.0,103640.0,0.29476006]
[1750455452771,4.20769306,103650.0,103640.0,0.27546353]
[1750455452943,4.21734091,103650.0,103640.0,0.28511184]
[1750455453145,4.41029797,103650.0,103640.0,0.27546353]
[1750455453676,4.41029797,103650.0,103640.0,0.28511184]
[1750455454522,4.41029797,103650.0,103640.0,0.27546353]
[1750455455796,4.41932261,103650.0,103640.0,0.27546353]
[1750455456013,4.41029797,103650.0,103640.0,0.27546353]
[1750455456204,4.21734091,103650.0,103640.0,0.27546353]
[1750455456623,4.21734091,103650.0,103640.0,0.28511184]
[1750455457022,4.21734091,103650.0,103640.0,0.27546353]
[1750455457440,4.21734091,103650.0,103640.0,0.28511184]
[1750455458239,4.41029797,103650.0,103640.0,0.27546353]
[1750455458857,4.22636537,103650.0,103640.0,0.28511184]
[1750455459071,4.21734091,103650.0,103640.0,0.28511184]
[1750455459792,4.41029797,103650.0,103640.0,0.27546353]
[1750455460426,4.41029797,103650.0,103640.0,0.28511184]
[1750455460633,4.21734091,103650.0,103640.0,0.28511184]
[1750455461042,4.21734082,103650.0,103640.0,0.28511184]
[1750455461477,4.41029788,103650.0,103640.0,0.27546362]
[1750455461887,4.41029788,103650.0,103640.0,0.28511203]
[1750455462567,4.41029788,103650.0,103640.0,0.26581512]
[1750455462776,4.21734082,103650.0,103640.0,0.28511184]
[1750455463401,4.41029788,103650.0,103640.0,0.27546353]
[1750455463615,4.41994573,103650.0,103640.0,0.28511184]
[1750455464762,4.41994573,103650.0,103640.0,0.27546353]
[1750455464961,4.42897071,103650.0,103640.0,0.27546353]
[1750455465224,4.41994573,103650.0,103640.0,0.28511184]
[1750455467161,4.41994573,103650.0,103640.0,0.27546353]
[1750455467611,4.41994573,103650.0,103640.0,0.28511184]
[1750455470754,4.41932355,103650.0,103640.0,0.27546353]
[1750455471248,4.41932355,103650.0,103640.0,0.28511184]
[1750455472743,4.44831055,103650.0,103640.0,0.28511184]
[1750455473166,4.23605788,103650.0,103640.0,0.28630184]
[1750455473420,4.23605788,103650.0,103640.0,0.29594997]
[1750455473421,4.22703296,103650.0,103640.0,0.29594997]
[1750455473890,4.23668072,103650.0,103640.0,0.29595006]
[1750455474491,4.23668072,103650.0,103640.0,0.30559819]
[1750455475007,4.23668072,103650.0,103640.0,0.28630184]
[1750455475236,4.23668072,103650.0,103640.0,0.29595006]
[1750455475882,4.23668072,103650.0,103640.0,0.28630184]
[1750455476090,4.23668072,103650.0,103640.0,0.29595006]
[1750455476348,4.23668072,103650.0,103640.0,0.28630184]
[1750455477595,4.23668072,103650.0,103640.0,0.29595006]
[1750455478230,4.23668072,103650.0,103640.0,0.28630184]
[1750455478841,4.42963778,103650.0,103640.0,0.28630184]
[1750455479398,4.42963778,103650.0,103640.0,0.28511184]
[1750455479592,4.42963778,103650.0,103640.0,0.27546353]
[1750455479839,4.43928563,103650.0,103640.0,0.28511184]
[1750455480040,4.42963778,103650.0,103640.0,0.28511184]
[1750455480405,4.42963778,103650.0,103640.0,0.26581512]
[1750455480604,4.42963778,103650.0,103640.0,0.27546362]
[1750455480902,4.42963778,103650.0,103640.0,0.28511203]
[1750455481083,4.42963778,103650.0,103640.0,0.29476034]
[1750455481474,4.43928563,103650.0,103640.0,0.29476034]
[1750455481940,4.43928563,103650.0,103640.0,0.28511203]
[1750455482564,4.43928563,103650.0,103640.0,0.29476034]
[1750455485999,4.24632857,103650.0,103640.0,0.29476034]
[1750455487022,4.58632857,103650.0,103640.0,0.29592034]
[1750455487450,4.57668072,103650.0,103640.0,0.29592034]
[1750455487872,4.76963778,103650.0,103640.0,0.28627203]
[1750455488078,4.57668072,103650.0,103640.0,0.30556856]
[1750455488282,4.57668072,103650.0,103640.0,0.30440856]
[1750455488690,4.76963825,103650.0,103640.0,0.25616653]
[1750455488894,4.77866133,103650.0,103640.0,0.26581512]
[1750455489101,4.77866133,103650.0,103640.0,0.27546362]
[1750455489308,4.55527525,103650.0,103640.0,0.28511203]
[1750455490137,4.55527525,103650.0,103640.0,0.29476034]
[1750455492000,4.55527525,103650.0,103640.0,0.28511203]
[1750455492631,4.55527525,103650.0,103640.0,0.28627203]
[1750455492823,4.55527525,103650.0,103640.0,0.29592034]
[1750455493069,4.55527525,103650.0,103640.0,0.29476034]
[1750455494341,1.90355762,103650.0,103640.0,0.30440856]
[1750455494570,0.53154154,103650.0,103640.0,0.30440856]
[1750455494807,0.54118864,103650.0,103640.0,0.29591997]
[1750455495029,2.57716855,103650.0,103640.0,0.28511175]
[1750455495926,2.57716855,103650.0,103640.0,0.28627175]
[1750455496703,2.11580963,103650.0,103640.0,0.28627175]
[1750455496946,2.57716855,103650.0,103640.0,0.29591997]
[1750455497601,2.57716855,103650.0,103640.0,0.28627175]
[1750455498275,2.91716855,103650.0,103640.0,0.28627175]
[1750455498714,2.91716855,103650.0,103640.0,0.29591997]
[1750455498937,2.91716855,103650.0,103640.0,0.28627175]
[1750455499175,2.72421149,103650.0,103640.0,0.29591997]
[1750455499687,2.91716855,103650.0,103640.0,0.28627175]
[1750455500200,2.91716855,103650.0,103640.0,0.29591997]
[1750455500885,2.90752145,103650.0,103640.0,0.27662344]
[1750455501292,2.90752145,103650.0,103640.0,0.27546344]
[1750455502533,2.90752145,103650.0,103640.0,0.27546381]
[1750455502740,2.90752145,103650.0,103640.0,0.28511222]
[1750455505566,2.90709764,103650.0,103640.0,0.27546381]
[1750455506456,2.70178183,103650.0,103640.0,0.27546381]
[1750455506668,1.05485131,103650.0,103640.0,0.28511222]
[1750455506877,2.71142931,103650.0,103640.0,0.28511222]
[1750455507503,2.72107669,103650.0,103640.0,0.28511222]
[1750455508906,2.72107669,103650.0,103640.0,0.28627222]
[1750455509515,2.72107669,103650.0,103640.0,0.27662381]
[1750455510543,2.72107669,103650.0,103640.0,0.26581531]
[1750455510875,2.72107669,103650.0,103640.0,0.2851124]
[1750455511537,2.72107669,103650.0,103640.0,0.2862724]
[1750455514050,3.35368953,103650.0,103640.0,0.25616653]
[1750455514896,3.53541387,103650.0,103630.0,0.06172301]
[1750455515108,0.01929868,103630.0,103620.0,0.22196383]
[1750455515327,0.01929868,103630.0,103620.0,0.38126383]
[1750455515328,2.1783956,103630.0,103620.0,0.38126383]
[1750455515802,2.47631826,103630.0,103620.0,0.21231384]
[1750455516013,2.4666692,103630.0,103620.0,0.20266348]
[1750455516237,0.20266339,103620.0,103610.0,0.29127621]
[1750455516451,2.59859685,103620.0,103610.0,0.38136818]
[1750455516673,2.06877504,103650.0,103640.0,0.20262409]
[1750455516897,2.54110994,103650.0,103640.0,0.22306091]
[1750455517104,2.52043854,103650.0,103640.0,0.22306091]
[1750455517316,2.51843854,103650.0,103640.0,0.22306091]
[1750455517562,2.52808611,103650.0,103640.0,0.22306091]
[1750455517783,2.48692611,103650.0,103640.0,0.22306091]
[1750455517963,2.52808611,103650.0,103640.0,0.25566091]
[1750455518260,2.53773377,103650.0,103640.0,0.28776091]
[1750455518481,2.54738162,103650.0,103640.0,0.28776109]
[1750455518707,2.53773377,103650.0,103640.0,0.29740931]
[1750455518924,2.54738162,103650.0,103640.0,0.28776109]
[1750455519147,2.49657377,103650.0,103640.0,0.29740931]
[1750455519364,2.54738153,103650.0,103640.0,0.29740931]
[1750455520013,2.54738153,103650.0,103640.0,0.28776109]
[1750455522287,2.54738218,103650.0,103640.0,0.28776109]
[1750455523109,2.64265203,103650.0,103640.0,0.28776109]
[1750455524802,2.54738218,103650.0,103640.0,0.28776109]
[1750455525891,2.53773433,103650.0,103640.0,0.29740931]
[1750455526098,2.53773433,103650.0,103640.0,0.28776109]
[1750455527203,2.53773433,103650.0,103640.0,0.29740931]
[1750455527422,2.53773433,103650.0,103640.0,0.28776109]
[1750455529213,2.53773433,103650.0,103640.0,0.29740931]
[1750455529638,2.53773433,103650.0,103640.0,0.28776109]
[1750455532399,2.53773433,103650.0,103640.0,0.27811278]
[1750455532604,2.53773433,103650.0,103640.0,0.28776109]
[1750455532738,2.73069139,103650.0,103640.0,0.27811278]
[1750455533192,2.73069139,103650.0,103640.0,0.28776109]
[1750455533410,2.73069139,103650.0,103640.0,0.27811278]
[1750455533560,2.73069139,103650.0,103640.0,0.28776109]
[1750455534368,2.73069139,103650.0,103640.0,0.27811278]
[1750455534369,2.74033924,103650.0,103640.0,0.27811278]
[1750455534597,2.74033924,103650.0,103640.0,0.28776109]
[1750455534809,2.74033924,103650.0,103640.0,0.27811278]
[1750455535661,2.74033924,103650.0,103640.0,0.28776109]
[1750455535865,2.74033924,103650.0,103640.0,0.27811278]
[1750455536080,2.73069186,103650.0,103640.0,0.27811287]
[1750455536293,2.73069186,103650.0,103640.0,0.28776118]
[1750455538836,2.39064482,103650.0,103640.0,0.28776118]
[1750455539462,2.39064482,103650.0,103640.0,0.27811287]
[1750455539673,2.39064482,103650.0,103640.0,0.29740959]
[1750455540515,2.39064482,103650.0,103640.0,0.28776128]
[1750455540927,2.73064482,103650.0,103640.0,0.28776128]
[1750455542597,2.73064482,103650.0,103640.0,0.26846437]
[1750455542815,2.72099725,103650.0,103640.0,0.26846437]
[1750455543035,2.72099725,103650.0,103640.0,0.27811287]
[1750455543929,2.72099725,103650.0,103640.0,0.28776128]
[1750455544338,2.7300298,103650.0,103640.0,0.28776128]
[1750455546057,2.72099725,103650.0,103640.0,0.28776128]
[1750455546266,2.72099725,103650.0,103640.0,0.29740959]
[1750455551794,2.05703342,103650.0,103640.0,0.30705781]
[1750455552010,2.51839234,103650.0,103640.0,0.30705781]
[1750455552233,2.51839234,103650.0,103640.0,0.30705725]
[1750455553471,2.52804019,103650.0,103640.0,0.29740912]
[1750455556335,2.51839234,103650.0,103640.0,0.30705725]
[1750455556957,2.51839234,103650.0,103640.0,0.29740912]
[1750455557397,2.51839196,103650.0,103640.0,0.29740912]
[1750455557621,2.72099678,103650.0,103640.0,0.2877609]
[1750455560627,2.73064463,103650.0,103640.0,0.2877609]
[1750455561334,2.72099725,103650.0,103640.0,0.2877609]
[1750455566747,2.72099725,103650.0,103640.0,0.27811296]
[1750455566981,2.72099725,103650.0,103640.0,0.29740968]
[1750455569712,2.72099725,103650.0,103640.0,0.27811296]
[1750455572676,2.72099725,103650.0,103640.0,0.28776137]
[1750455574595,2.71134959,103650.0,103640.0,0.28776155]
[1750455574803,2.71130959,103650.0,103640.0,0.29740996]
[1750455575824,2.24995067,103650.0,103640.0,0.29740996]
[1750455576084,2.71130959,103650.0,103640.0,0.28776155]
[1750455576288,2.71130959,103650.0,103640.0,0.29740996]
[1750455577784,2.80657944,103650.0,103640.0,0.29740996]
[1750455578905,2.80657944,103650.0,103640.0,0.28776155]
[1750455579514,2.80657944,103650.0,103640.0,0.29740996]
[1750455586535,2.80657944,103650.0,103640.0,0.28776155]
[1750455587297,2.80657944,103650.0,103640.0,0.29740996]
[1750455588978,2.80657944,103650.0,103640.0,0.28776155]
[1750455591545,2.79693168,103650.0,103640.0,0.25881568]
[1750455591822,3.2576727,103650.0,103640.0,0.25881568]
[1750455592493,3.2576727,103650.0,103640.0,0.26846446]
[1750455593388,3.2576715,103650.0,103640.0,0.26846446]
[1750455595206,3.24864275,103650.0,103640.0,0.26846446]
[1750455598618,3.24864275,103650.0,103640.0,0.06584]
[1750455599106,3.24864275,103650.0,103640.0,0.26846446]
[1750455599591,3.1533729,103650.0,103640.0,0.26846446]
[1750455599814,2.69197398,103650.0,103640.0,0.27811315]
[1750455600275,0.84243892,103650.0,103640.0,0.29740987]
[1750455600515,0.66396132,103660.0,103650.0,0.22304194]
[1750455600516,0.50243892,103660.0,103650.0,0.22304194]
[1750455600811,0.34103994,103670.0,103660.0,0.22303809]
[1750455601045,0.34103994,103670.0,103660.0,0.28613809]
[1750455602142,0.03898738,103680.0,103670.0,0.22185668]
[1750455602373,2.67874278,103680.0,103670.0,0.28616668]
[1750455602854,2.69803215,103680.0,103670.0,0.28616668]
[1750455603075,2.66909828,103680.0,103670.0,0.28616668]
[1750455603327,2.68074259,103680.0,103670.0,0.28616668]
[1750455603563,2.68274259,103680.0,103670.0,0.28616668]
[1750455604038,2.64166259,103680.0,103670.0,0.28616668]
[1750455604271,2.67309828,103680.0,103670.0,0.28616668]
[1750455604509,2.68274269,103680.0,103670.0,0.28616668]
[1750455607122,2.69238728,103680.0,103670.0,0.28616668]
[1750455607811,2.69238719,103680.0,103670.0,0.28616668]
[1750455608046,2.68274269,103680.0,103670.0,0.28616668]
[1750455608511,2.69238728,103680.0,103670.0,0.28616668]
[1750455608745,2.68274269,103680.0,103670.0,0.28616668]
[1750455609217,2.70203187,103680.0,103670.0,0.28616668]
[1750455609453,2.8949331,103680.0,103670.0,0.25722984]
[1750455609701,2.70203243,103680.0,103670.0,0.27652134]
[1750455609947,0.03858209,103670.0,103660.0,0.39360537]
[1750455610206,2.34943969,103670.0,103660.0,0.4032521]
[1750455610432,2.90607754,103670.0,103660.0,0.22603845]
[1750455610671,2.8867864,103670.0,103660.0,0.19293845]
[1750455611125,3.0350206,103670.0,103660.0,0.19293845]
[1750455611597,3.12939446,103670.0,103660.0,0.19293845]
[1750455613702,3.46939446,103670.0,103660.0,0.19293845]
[1750455614830,1.86881019,103660.0,103650.0,0.27864549]
[1750455615032,2.83256803,103660.0,103650.0,0.28829297]
[1750455615235,1.72655838,103660.0,103650.0,0.28708306]
[1750455615443,2.8422144,103660.0,103650.0,0.22604007]
[1750455615650,3.0000944,103660.0,103650.0,0.22604007]
[1750455615862,3.0000944,103660.0,103650.0,0.23568792]
[1750455616102,3.0000944,103660.0,103650.0,0.22604007]
[1750455616322,2.99044785,103660.0,103650.0,0.0331]
[1750455616549,2.99044785,103660.0,103650.0,0.22805706]
[1750455617029,3.52099663,103660.0,103650.0,0.002]
[1750455617615,3.52099663,103660.0,103650.0,0.003]
[1750455618093,4.04535555,103660.0,103650.0,0.003]
[1750455618310,4.04540555,103660.0,103650.0,0.002]
[1750455619125,1.85918272,103650.0,103640.0,0.0308]
[1750455619311,2.78190056,103650.0,103640.0,0.0308]
[1750455619516,2.93978056,103650.0,103640.0,0.0308]
[1750455621241,3.36540275,103650.0,103630.0,0.31264597]
[1750455621444,2.97123152,103640.0,103630.0,0.26802702]
[1750455621647,2.97123152,103640.0,103630.0,0.26923702]
[1750455622511,2.98088021,103640.0,103630.0,0.26923702]
[1750455622729,2.98088021,103640.0,103630.0,0.26928406]
[1750455622932,2.51952312,103640.0,103630.0,0.26928406]
[1750455623153,2.51952312,103640.0,103630.0,0.27128406]
[1750455623556,2.51952312,103640.0,103630.0,0.26928406]
[1750455623758,2.32654744,103640.0,103630.0,0.27893358]
[1750455623960,2.33619594,103640.0,103630.0,0.28858292]
[1750455624179,2.33619594,103640.0,103630.0,0.29923198]
[1750455624629,2.14344794,103640.0,103630.0,0.29823198]
[1750455626937,2.15309606,103640.0,103630.0,0.29823198]
[1750455629005,2.34607174,103640.0,103630.0,0.28737292]
[1750455629181,2.15309606,103640.0,103630.0,0.30788131]
[1750455629386,2.16274475,103640.0,103630.0,0.30788131]
[1750455630273,2.35572043,103640.0,103630.0,0.29823216]
[1750455631477,2.35572043,103640.0,103630.0,0.30788131]
[1750455631686,2.36536921,103640.0,103630.0,0.30788131]
[1750455632855,2.35572099,103640.0,103630.0,0.29823216]
[1750455634024,2.35572099,103640.0,103630.0,0.30788131]
[1750455634244,2.35572099,103640.0,103630.0,0.30667131]
[1750455634452,2.15676099,103640.0,103630.0,0.30667131]
[1750455634618,2.15309541,103640.0,103630.0,0.306844]
[1750455635026,2.162744,103640.0,103630.0,0.306844]
[1750455636628,2.15309541,103640.0,103630.0,0.306844]
[1750455637145,1.99517541,103640.0,103630.0,0.306844]
[1750455638780,1.98552691,103640.0,103630.0,0.306844]
[1750455639040,1.99517532,103640.0,103630.0,0.306844]
[1750455639245,1.98552691,103640.0,103630.0,0.306844]
[1750455639943,1.99517532,103640.0,103630.0,0.306844]
[1750455641828,1.98552691,103640.0,103630.0,0.306844]
[1750455642070,1.99517522,103640.0,103630.0,0.306844]
[1750455642968,2.45642599,103640.0,103630.0,0.306844]
[1750455644063,2.43712946,103640.0,103630.0,0.306844]
[1750455644274,2.44677759,103640.0,103630.0,0.306844]
[1750455644482,2.456426,103640.0,103630.0,0.29524494]
[1750455644707,2.456426,103640.0,103630.0,0.304894]
[1750455644924,2.44677759,103640.0,103630.0,0.304894]
[1750455645134,2.4564259,103640.0,103630.0,0.306144]
[1750455649299,2.46607449,103640.0,103630.0,0.306144]
[1750455650416,2.47572318,103640.0,103630.0,0.306144]
[1750455656566,2.46607449,103640.0,103630.0,0.306144]
[1750455656778,2.66869895,103640.0,103630.0,0.304894]
[1750455656989,2.65905101,103640.0,103630.0,0.28559579]
[1750455657529,2.64940288,103640.0,103630.0,0.27594655]
[1750455657732,2.67794592,103640.0,103630.0,0.27594655]
[1750455657939,2.77321577,103640.0,103630.0,0.24434655]
[1750455658610,2.67794592,103640.0,103630.0,0.24434655]
[1750455659218,2.67794592,103640.0,103630.0,0.25399579]
[1750455659363,2.67794592,103640.0,103630.0,0.28689579]
[1750455659586,2.67794592,103640.0,103630.0,0.29654494]
[1750455659921,2.83582592,103640.0,103630.0,0.29654494]
[1750455662574,2.83582592,103640.0,103630.0,0.306194]
[1750455667306,2.83582592,103640.0,103630.0,0.307444]
[1750455667948,2.83582592,103640.0,103630.0,0.29779494]
[1750455668400,2.83582592,103640.0,103630.0,0.29654494]
[1750455668607,2.83582592,103640.0,103630.0,0.29779494]
[1750455669013,1.72023788,103640.0,103630.0,0.307444]
[1750455669216,2.65249799,103640.0,103630.0,0.307444]
[1750455670106,2.49461799,103640.0,103630.0,0.307444]
[1750455671063,2.43708965,103640.0,103630.0,0.307444]
[1750455671494,2.42744152,103640.0,103630.0,0.307444]
[1750455671725,2.43708955,103640.0,103630.0,0.307444]
[1750455671937,2.42744152,103640.0,103630.0,0.307444]
[1750455672371,2.43708955,103640.0,103630.0,0.307444]
[1750455674298,1.92513576,103640.0,103630.0,0.307444]
[1750455675626,1.92513576,103640.0,103630.0,0.308444]
[1750455675861,2.26513576,103640.0,103630.0,0.308444]
[1750455676136,2.26513576,103640.0,103630.0,0.310444]
[1750455678727,2.04665976,103640.0,103630.0,0.310444]
[1750455679183,0.34,103640.0,103630.0,0.310444]
[1750455679405,0.80130576,103640.0,103630.0,0.310444]
[1750455686769,1.26261152,103640.0,103630.0,0.310444]
[1750455687410,0.80130576,103640.0,103630.0,0.310444]
[1750455690740,2.81322933,103620.0,103610.0,0.24141839]
[1750455690978,2.81322933,103620.0,103610.0,0.27381783]
[1750455690979,2.31945371,103620.0,103610.0,0.27381783]
[1750455691179,1.85796781,103620.0,103610.0,0.27381783]
[1750455691447,2.31945371,103620.0,103610.0,0.27381783]
[1750455691673,2.31945371,103620.0,103610.0,0.27481783]